fUSD/lending_fUSD_20240501
["ID","MTS","AMOUNT","RATE_DAILY","PERIOD"]
[325235497,1714606232429,-246.12418372,0.00012996,2]
[325235498,1714606232440,-255.63107012,0.00012997,2]
[325235499,1714606232450,-2020.89469044,0.00012998,2]
[325235500,1714606232462,-339.17452989,0.00012998,2]
[325235501,1714606232471,-409.12808028,0.00012998,2]
[325235502,1714606232481,-282.5056553,0.00012998,2]
[325235503,1714606232492,-1551.66555601,0.00012998,2]
[325235504,1714606232529,-5269.01689433,0.00012998,2]
[325235513,1714606237641,-155.36852506,0.0001299,2]
[325235514,1714606237653,-4310.39547503,0.00012998,2]
[325235515,1714606237663,-155.04223178,0.00012998,2]
[325235516,1714606237673,-357.22427774,0.00012998,2]
[325235517,1714606237683,-707.07547082,0.00012998,2]
[325235518,1714606237693,-236.72474812,0.00012998,2]
[325235519,1714606237702,-155.0,0.00012998,2]
[325235520,1714606237711,-1352.6419707,0.00012998,2]
[325235521,1714606237721,-1777.97814072,0.00012998,2]
[325235522,1714606237731,-200.46583698,0.00012998,2]
[325235523,1714606237740,-325.9726804,0.00012998,2]
[325235524,1714606237749,-527.47233212,0.00012998,2]
[325235525,1714606237759,-359.88720368,0.00012998,2]
[325235526,1714606237769,-2357.35273504,0.00012998,2]
[325235527,1714606237778,-155.0,0.00012998,2]
[325235528,1714606237788,-155.0,0.00012998,2]
[325235529,1714606237797,-3083.19521143,0.00012998,2]
[325235530,1714606237807,-155.0,0.00012998,2]
[325235531,1714606237816,-204.1317369,0.00012998,2]
[325235532,1714606237826,-3002.52973088,0.00012998,2]
[325235533,1714606237835,-162.22835708,0.00012998,2]
[325235534,1714606237844,-377.14934177,0.00012998,2]
[325235535,1714606237854,-208.058967,0.00012998,2]
[325235536,1714606237865,-216.22293644,0.00012998,2]
[325235537,1714606237874,-155.0,0.00012998,2]
[325235538,1714606237883,-192.90820693,0.00012998,2]
[325235539,1714606237892,-3416.05573349,0.00012998,2]
[325235540,1714606237901,-370.31865008,0.00012998,2]
[325235541,1714606237911,-206.94540813,0.00012998,2]
[325235542,1714606237921,-324.1129268,0.00012998,2]
[325235543,1714606237932,-40978.18996922,0.00012998,2]
[325235544,1714606237941,-19518.60027249,0.00012999,2]
[325235545,1714606237951,-1089102.88994755,0.00013,2]
[325235546,1714606237960,-1748.77005859,0.00013,2]
[325235547,1714606237970,-302.06622569,0.00013,2]
[325235548,1714606237979,-311.29151389,0.00013,2]
[325235549,1714606237988,-622952.242266,0.00013,2]
[325235550,1714606238000,-704.71507172,0.00013,2]
[325235551,1714606238012,-12459.23655164,0.00013,2]
[325235552,1714606238040,-392.8545,0.00013,2]
[325235553,1714606238052,-160753.74856936,0.00013,2]
[325235554,1714606238075,-305.38257962,0.00013,2]
[325235555,1714606238086,-438.61202703,0.00013,2]
[325235556,1714606238097,-210248.63726264,0.00013,2]
[325235557,1714606238107,-4018.55959599,0.00013,2]
[325235558,1714606238118,-155.18386345,0.00013,2]
[325235559,1714606238126,-298.84757904,0.00013,2]
[325235561,1714606238135,-395.48709337,0.00013,2]
[325235563,1714606238144,-548.26568754,0.00013,2]
[325235565,1714606238153,-4650.0,0.00013,2]
[325235567,1714606238162,-1374.34488026,0.00013,2]
[325235569,1714606238171,-179.73027073,0.00013,2]
[325235571,1714606238180,-10122.0,0.00013282,2]
[325235573,1714606238189,-210.0,0.00013302,2]
[325235575,1714606238198,-402.04,0.00013425,2]
[325235577,1714606238208,-150.76,0.00013425,2]
[325235579,1714606238217,-388.4,0.00013699,2]
[325235581,1714606238226,-500.0,0.00013699,2]
[325235583,1714606238235,-1969.01,0.00013699,2]
[325235585,1714606238245,-200.0,0.00013699,2]
[325235587,1714606238254,-250.0,0.00013699,2]
[325235589,1714606238263,-400.0,0.00013964,2]
[325235591,1714606238272,-214.23880024,0.00014,2]
[325235593,1714606238281,-150.32,0.00014,2]
[325235595,1714606238290,-1000.0,0.00014045,2]
[325235597,1714606238299,-500.0,0.000146,2]
[325235599,1714606238308,-617.71050029,0.00015,2]
[325235601,1714606238317,-8086.0,0.00015,2]
[325235603,1714606238326,-500.0,0.0001522,2]
[325235605,1714606238335,-400.0,0.00015361,2]
[325235607,1714606238346,-1000.0,0.00015449,2]
[325235609,1714606238355,-37518.15125807,0.00015809,2]
[325235611,1714606238365,-500.0,0.0001585,2]
[325235613,1714606238375,-979.9,0.0001611,15]
[325235615,1714606238384,-2306.45794042,0.00016186,2]
[325235617,1714606238394,-1037.76,0.00016438,2]
[325235619,1714606238403,-500.0,0.0001647,2]
[325235622,1714606238412,-1224.55602433,0.000165,2]
[325235625,1714606238421,-542.0,0.0001675,2]
[325235627,1714606238430,-909.0,0.0001675,2]
[325235629,1714606238440,-610.0,0.0001675,2]
[325235631,1714606238449,-400.0,0.00016757,2]
[325235633,1714606238458,-1000.0,0.00016854,2]
[325235635,1714606238467,-10000.0,0.00016965,2]
[325235637,1714606238477,-19590.34951232,0.00017,2]
[325235640,1714606238486,-500.0,0.000171,2]
[325235641,1714606238495,-500.0,0.0001772,2]
[325235643,1714606238504,-800.0,0.00017753,2]
[325235645,1714606238513,-393.33866278,0.0001788,2]
[325235648,1714606238522,-393.33866274,0.0001788,2]
[325235649,1714606238532,-3025.46982964,0.0001788,2]
[325235651,1714606238541,-3025.46982961,0.0001788,2]
[325235653,1714606238550,-704.0,0.000183,2]
[325235655,1714606238559,-1000.0,0.000183,2]
[325235657,1714606238568,-37518.15125807,0.00018718,2]
[325235660,1714606238578,-393.33866274,0.00018898,2]
[325235662,1714606238587,-800.0,0.00019014,2]
[325235664,1714606238597,-4000.0,0.00019178,2]
[325235666,1714606238610,-171.43,0.000192,2]
[325235668,1714606238620,-2306.45794042,0.00019471,2]
[325235670,1714606238629,-150.32,0.0001959,2]
[325235672,1714606238638,-1881.63197234,0.000196,2]
[325235674,1714606238648,-979.9,0.00019846,15]
[325235676,1714606238657,-626.26256473,0.0002,2]
[325235678,1714606238667,-186.23625891,0.0002,30]
[325235680,1714606238676,-155.0,0.0002,2]
[325235682,1714606238686,-6224.87563104,0.0002,2]
[325235684,1714606238695,-5173.86583197,0.0002,2]
[325235686,1714606238705,-1258.79778978,0.0002,2]
[325235688,1714606238714,-860.17578703,0.0002,2]
[325235690,1714606238723,-155.0,0.0002,2]
[325235692,1714606238732,-1768.2555451,0.0002,2]
[325235694,1714606238741,-193.9,0.0002,2]
[325235696,1714606238751,-185.37,0.0002,2]
[325235698,1714606238760,-167.55025877,0.0002,2]
[325235700,1714606238769,-1040.945855,0.0002,2]
[325235702,1714606238779,-37392.25312944,0.0002,2]
[325235704,1714606238788,-868.69025251,0.0002,2]
[325235706,1714606238797,-500.0,0.00020086,2]
[325235708,1714606238807,-200.0,0.00020144,2]
[325235710,1714606238816,-155.0,0.000209,2]
[325235712,1714606238826,-159.48689012,0.000209,2]
[325235714,1714606238835,-159.48688996,0.000209,2]
[325235716,1714606238845,-159.48688996,0.000209,2]
[325235718,1714606238854,-159.48688996,0.000209,2]
[325235720,1714606238865,-159.48688996,0.000209,2]
[325235722,1714606238875,-159.48688996,0.000209,2]
[325235724,1714606238884,-159.48688996,0.000209,2]
[325235726,1714606238893,-159.48688996,0.000209,2]
[325235727,1714606238904,-159.48688996,0.000209,2]
[325235730,1714606238913,-159.48688996,0.000209,2]
[325235731,1714606238922,-159.48688996,0.000209,2]
[325235734,1714606238933,-716.17723846,0.00021,2]
[325235736,1714606238942,-159.48688996,0.00021352,2]
[325235738,1714606238952,-37518.15125807,0.00021627,2]
[325235740,1714606238961,-812.25,0.00021644,2]
[325235742,1714606238971,-164.18,0.00021644,2]
[325235744,1714606238980,-279.59,0.00021644,2]
[325235746,1714606238990,-163.66,0.00021644,2]
[325235748,1714606238999,-393.33866274,0.00021899,2]
[325235750,1714606239009,-6755.06434201,0.000219,2]
[325235752,1714606239018,-2000.0,0.000219,2]
[325235753,1714606239027,-250.0,0.00021918,2]
[325235755,1714606239037,-2000.0,0.00021918,2]
[325235757,1714606239046,-159.48688996,0.0002212,2]
[325235760,1714606239056,-2306.45794042,0.00022757,2]
[325235762,1714606239065,-159.48688996,0.00022889,2]
[325235764,1714606239075,-17686.11973703,0.00023,2]
[325235766,1714606239085,-155.0,0.00023,2]
[325235767,1714606239094,-185.37,0.00023,2]
[325235770,1714606239103,-193.9,0.000231,2]
[325235771,1714606239112,-150.0,0.000231,3]
[325235773,1714606239126,-3838.43714493,0.000234,2]
[325235775,1714606239135,-171.43,0.000234,2]
[325235778,1714606239145,-979.9,0.00023582,15]
[325235780,1714606239154,-150.0,0.000236,3]
[325235781,1714606239163,-159.48688996,0.00023657,2]
[325235784,1714606239173,-431.93900284,0.00024,2]
[325235786,1714606239182,-155.0,0.00024,2]
[325235788,1714606239191,-1000.0,0.00024,2]
[325235790,1714606239200,-150.0,0.000241,4]
[325235791,1714606239209,-1759.43394311,0.000244,2]
[325235793,1714606239218,-150.42918332,0.000244,2]
[325235796,1714606239228,-159.48688996,0.00024426,2]
[325235798,1714606239237,-37518.15125807,0.00024536,2]
[325235800,1714606239246,-150.0,0.000246,4]
[325235802,1714606239256,-210.36911107,0.00024608,2]
[325235804,1714606239265,-500.0,0.00024657,2]
[325235806,1714606239274,-500.0,0.00024657,2]
[325235808,1714606239284,-500.0,0.00024657,2]
[325235810,1714606239293,-500.0,0.00024657,2]
[325235812,1714606239302,-500.0,0.00024657,2]
[325235814,1714606239311,-500.0,0.00024657,2]
[325235816,1714606239320,-500.0,0.00024657,2]
[325235818,1714606239330,-500.0,0.00024657,2]
[325235820,1714606239339,-500.0,0.00024657,2]
[325235822,1714606239348,-554.44,0.00024657,2]
[325235824,1714606239357,-2688.58,0.00024657,2]
[325235826,1714606239370,-402.04,0.00024658,2]
[325235828,1714606239379,-393.33866274,0.00024899,2]
[325235830,1714606239388,-5003.38050409,0.00025,2]
[325235832,1714606239397,-572.67268291,0.00025,7]
[325235833,1714606239407,-471.19309113,0.00025,2]
[325235835,1714606239416,-303.02136818,0.00025,5]
[325235837,1714606239425,-185.37,0.000251,2]
[325235839,1714606239434,-150.0,0.000251,4]
[325235841,1714606239443,-159.48688996,0.00025194,2]
[325235843,1714606239452,-193.9,0.000252,2]
[325235845,1714606239462,-150.0,0.000256,4]
[325235847,1714606239471,-12844.13313497,0.00025608,2]
[325235849,1714606239480,-150.0,0.00025608,2]
[325235851,1714606239490,-155.0,0.00025608,30]
[325235853,1714606239499,-308.97079902,0.0002575,2]
[325235854,1714606239508,-784.8851117,0.0002575,2]
[325235855,1714606239518,-4015.18274445,0.0002575,2]
[325235857,1714606239527,-385.8864257,0.0002575,2]
[325235859,1714606239536,-159.48688996,0.00025963,2]
[325235861,1714606239546,-2688.58,0.00026027,4]
[325235862,1714606239555,-2306.45794042,0.00026043,2]
[325235864,1714606239564,-150.0,0.000261,4]
[325235866,1714606239573,-155.0,0.00026231,30]
[325235868,1714606239583,-150.0,0.000266,5]
[325235870,1714606239592,-155.0,0.00027,4]
[325235872,1714606239602,-3338.71656259,0.00027,2]
[325235874,1714606239617,-1000.0,0.00027,2]
[325235876,1714606239626,-150.0,0.000271,5]
[325235878,1714606239635,-400.0,0.00027148,10]
[325235880,1714606239645,-212602.38320682,0.00027186,2]
[325235882,1714606239654,-185.37,0.000273,2]
[325235884,1714606239664,-979.9,0.00027318,15]
[325235886,1714606239674,-500.0,0.0002739,2]
[325235888,1714606239685,-200.0,0.00027391,2]
[325235890,1714606239694,-500.0,0.00027391,2]
[325235892,1714606239704,-200.0,0.00027391,2]
[325235894,1714606239713,-300.0,0.00027397,2]
[325235896,1714606239723,-1000.0,0.00027397,2]
[325235898,1714606239732,-205.27085371,0.00027397,6]
[325235986,1714606240527,-2483.30914629,0.00027397,6]
[325235988,1714606240536,-150.0,0.00027397,2]
[325235990,1714606240546,-8178.41,0.00027397,10]
[325235992,1714606240555,-6815.34,0.00027397,10]
[325235994,1714606240564,-2000.0,0.000274,2]
[325235995,1714606240573,-37518.15125807,0.00027445,2]
[325235997,1714606240582,-155.36852506,0.00027489,2]
[325235998,1714606240591,-44557.65962891,0.00027499,2]
[325236000,1714606240601,-2017.0,0.000276,2]
[325236002,1714606240617,-171.43,0.000276,2]
[325236003,1714606240626,-150.0,0.000276,5]
[325236005,1714606240635,-1161.20116657,0.00027611,2]
[325236006,1714606240644,-562.92475247,0.00027612,2]
[325236007,1714606240655,-258.16330596,0.00027612,2]
[325236009,1714606240664,-219.52381524,0.00027612,2]
[325236010,1714606240673,-1036.70788643,0.00027612,2]
[325236012,1714606240683,-500.0,0.00027612,2]
[325236014,1714606240695,-155.0,0.00027612,2]
[325236015,1714606240703,-851.17076161,0.00027612,2]
[325236017,1714606240713,-4245.86460958,0.00027612,2]
[325236018,1714606240722,-812.25,0.00027714,2]
[325236020,1714606240732,-279.59,0.00027714,2]
[325236022,1714606240742,-215.13368793,0.00027718,2]
[325236023,1714606240751,-193.9,0.000278,2]
[325236025,1714606240760,-1033.0,0.00027887,5]
[325236026,1714606240769,-393.33866274,0.00027899,2]
[325236028,1714606240778,-440.27172033,0.00027998,2]
[325236030,1714606240788,-150.0,0.00027999,2]
[325236031,1714606240798,-50000.0,0.00028,8]
[325236033,1714606240807,-388.35,0.00028,2]
[325236034,1714606240816,-200.0,0.00028,2]
[325236036,1714606240825,-2000.0,0.00028,2]
[325236038,1714606240835,-15994.07,0.00028,10]
[325236039,1714606240845,-211.0,0.000281,2]
[325236041,1714606240854,-201.0,0.000281,2]
[325236043,1714606240863,-209.0,0.000281,2]
[325236044,1714606240875,-150.0,0.00028118,2]
[325236046,1714606240885,-268.1,0.00028241,30]
[325236047,1714606240897,-5548.89498889,0.00028517,30]
[325236048,1714606240907,-404.56209638,0.00028563,2]
[325236049,1714606240917,-193.04984217,0.00028563,2]
[325236051,1714606240927,-23369.934594,0.00028563,5]
[325236053,1714606240936,-559.09735674,0.00028563,2]
[325236055,1714606240945,-268.1,0.00028637,60]
[325236057,1714606240954,-600.0,0.00028765,12]
[325236059,1714606240962,-1000.0,0.00028767,2]
[325236061,1714606240972,-2688.58,0.00028767,9]
[325236063,1714606240981,-150.0,0.00028785,2]
[325236065,1714606240990,-150.0,0.00028839,2]
[325236067,1714606241000,-209.07671972,0.000289,2]
[325236069,1714606241009,-10000.0,0.000289,2]
[325236071,1714606241019,-1000.0,0.000289,2]
[325236073,1714606241031,-150.0,0.00028972,2]
[325236075,1714606241042,-150.0,0.00028972,2]
[325236077,1714606241051,-150.0,0.00028972,2]
[325236079,1714606241060,-150.0,0.00028972,2]
[325236080,1714606241071,-150.0,0.00028972,2]
[325236081,1714606241081,-302.64,0.00028972,2]
[325236082,1714606241092,-200.0,0.0002899,7]
[325236083,1714606241101,-249.06293442,0.0002899,7]
[325236084,1714606241111,-200.0,0.0002899,7]
[325236085,1714606241122,-200.0,0.0002899,7]
[325236086,1714606241132,-200.0,0.0002899,7]
[325236087,1714606241141,-200.0,0.0002899,7]
[325236088,1714606241152,-200.0,0.0002899,7]
[325236089,1714606241161,-200.0,0.0002899,7]
[325236090,1714606241170,-200.0,0.0002899,7]
[325236091,1714606241180,-200.0,0.0002899,7]
[325236092,1714606241190,-200.0,0.0002899,7]
[325236093,1714606241201,-200.0,0.0002899,7]
[325236094,1714606241210,-200.0,0.0002899,7]
[325236095,1714606241221,-200.0,0.0002899,7]
[325236096,1714606241231,-200.0,0.0002899,7]
[325236097,1714606241241,-200.0,0.0002899,7]
[325236098,1714606241250,-200.0,0.0002899,7]
[325236099,1714606241260,-150.32,0.0002899,2]
[325236100,1714606241268,-150.32,0.0002899,2]
[325236101,1714606241278,-150.32,0.0002899,2]
[325236102,1714606241289,-200.0,0.0002899,7]
[325236103,1714606241302,-150.0,0.00028999,2]
[325236104,1714606241312,-50000.0,0.00029,9]
[325236105,1714606241323,-563.69488817,0.00029,2]
[325236106,1714606241334,-1000.0,0.00029,2]
[325236107,1714606241343,-153139.6690861,0.00029,7]
[325236108,1714606241352,-10059.67443821,0.00029,7]
[325236109,1714606241361,-500000.0,0.00029,2]
[325236110,1714606241372,-1000.0,0.00029,2]
[325236111,1714606241381,-73281.96306734,0.00029,2]
[325236112,1714606241391,-5597.06494878,0.00029,14]
[325236113,1714606241400,-222.02545528,0.00029,2]
[325236114,1714606241410,-229664.87568987,0.00029,5]
[325236115,1714606241422,-72232.05546297,0.00029,5]
[325236116,1714606241433,-627.28584509,0.00029,5]
[325236117,1714606241445,-311.75649,0.00029,5]
[325236118,1714606241857,-320.205,0.00016703,2]
[325236119,1714606241867,-2795.1817,0.00029,5]
[325236120,1714606241878,-549.80271798,0.00029,5]
[325236121,1714606241909,-277.99868782,0.00029,5]
[325236122,1714606241920,-618.6512703,0.00029,5]
[325236123,1714606241953,-14529.0,0.00029,5]
[325236124,1714606241964,-1121.2213578,0.00029,5]
[325236125,1714606241975,-6709.96368001,0.00029,5]
[325236128,1714606243122,-1998.7134446,0.00018898,2]
[325236129,1714606243134,-392.30596212,0.00018898,2]
[325236132,1714606243282,-634.45042289,0.00018898,2]
[325236133,1714606243296,-159.48688996,0.00026731,2]
[325236134,1714606243306,-294767.48467722,0.00029,5]
[325236135,1714606243423,-6713.32558,0.00029,5]
[325236146,1714606245814,-653.26,0.00028783,15]
[325236147,1714606245824,-12517.83938464,0.00029,5]
[325236148,1714606245836,-581.0,0.00029,5]
[325236149,1714606245848,-19251.20163501,0.00029,5]
[325236158,1714607431621,-545.99933752,0.00012892,2]
[325236159,1714607431630,-533.44494604,0.00012893,2]
[325236160,1714607431640,-538.40022231,0.00012894,2]
[325236161,1714607431649,-5282.9076,0.00012898,2]
[325236162,1714607431658,-214.23880024,0.00014,2]
[325236163,1714607431669,-1295.0,0.00015,2]
[325236164,1714607431679,-617.71050029,0.00015,2]
[325236165,1714607431688,-1224.55602433,0.000165,2]
[325236166,1714607431698,-150.0,0.00016997,2]
[325236167,1714607431707,-19590.34951232,0.00017,2]
[325236168,1714607431717,-499.99,0.0001726,2]
[325236169,1714607431726,-150.99,0.00017534,2]
[325236170,1714607431735,-210.0,0.00018697,2]
[325236171,1714607431745,-1484.185031,0.00019857,2]
[325236172,1714607431754,-186.23625891,0.0002,30]
[325236173,1714607431763,-6224.87563104,0.0002,2]
[325236174,1714607431772,-155.0,0.0002,2]
[325236175,1714607431782,-860.17578703,0.0002,2]
[325236176,1714607431791,-626.26256473,0.0002,2]
[325236177,1714607431801,-1258.79778978,0.0002,2]
[325236178,1714607431810,-5173.86583197,0.00020059,2]
[325236179,1714607431819,-1768.2555451,0.0002006,2]
[325236180,1714607431828,-1484.185031,0.00020105,2]
[325236181,1714607431838,-1484.185031,0.00020353,2]
[325236182,1714607431847,-339.65816389,0.00020546,2]
[325236183,1714607431856,-150.99,0.00020546,2]
[325236184,1714607431865,-211.0,0.00020566,2]
[325236185,1714607431874,-1484.185031,0.00020602,2]
[325236186,1714607431884,-1484.185031,0.0002085,2]
[325236187,1714607431893,-155.0,0.000209,2]
[325236189,1714607431903,-716.17723846,0.00021,2]
[325236191,1714607431912,-1728.33,0.00021293,2]
[325236193,1714607431923,-400.0,0.00021622,2]
[325236194,1714607431933,-500.0,0.00021627,2]
[325236195,1714607431943,-731.02,0.00021644,2]
[325236197,1714607431953,-250.0,0.00021663,2]
[325236199,1714607431963,-598.82,0.00021676,15]
[325236200,1714607431972,-500.0,0.00021714,2]
[325236201,1714607431982,-250.0,0.00021715,2]
[325236202,1714607431993,-190.32,0.00021756,2]
[325236203,1714607432002,-20021.67,0.00021805,2]
[325236204,1714607432011,-150.76,0.00021817,2]
[325236205,1714607432021,-1000.0,0.00021818,2]
[325236206,1714607432033,-200.0,0.00021857,2]
[325236207,1714607432045,-250.0,0.00021918,2]
[325236208,1714607432055,-2000.0,0.00021918,2]
[325236209,1714607432064,-250.0,0.00021969,2]
[325236210,1714607432073,-164.64,0.00022303,2]
[325236211,1714607432083,-268.02,0.00022323,2]
[325236212,1714607432091,-17686.11973703,0.00023,2]
[325236213,1714607432100,-155.0,0.00023,2]
[325236214,1714607432110,-1000.0,0.000232,2]
[325236215,1714607432119,-1999.82575251,0.000234,2]
[325236216,1714607432129,-155.0,0.00024,2]
[325236217,1714607432139,-431.93900284,0.00024007,2]
[325236218,1714607432149,-182.66,0.00024008,2]
[325236219,1714607432158,-400.0,0.00024325,2]
[325236220,1714607432167,-1000.0,0.00024545,2]
[325236221,1714607432176,-800.0,0.0002463,2]
[325236222,1714607432186,-800.0,0.0002463,2]
[325236223,1714607432195,-749.44577857,0.00024656,2]
[325236224,1714607432205,-636.12,0.00024657,2]
[325236225,1714607432214,-636.12,0.00024657,2]
[325236226,1714607432223,-636.12,0.00024657,2]
[325236227,1714607432232,-636.12,0.00024657,2]
[325236228,1714607432241,-636.12,0.00024657,2]
[325236229,1714607432251,-636.12,0.00024657,2]
[325236230,1714607432260,-636.12,0.00024657,2]
[325236231,1714607432269,-636.12,0.00024657,2]
[325236232,1714607432278,-636.12,0.00024657,2]
[325236233,1714607432287,-636.12,0.00024657,2]
[325236234,1714607432296,-636.12,0.00024657,2]
[325236235,1714607432305,-2445.17272256,0.00024719,2]
[325236236,1714607432314,-154.993007,0.00025,4]
[325236237,1714607432325,-572.67268291,0.00025,7]
[325236238,1714607432335,-471.19309113,0.00025207,2]
[325236239,1714607432344,-2606.76124263,0.00025208,2]
[325236240,1714607432353,-598.82,0.00025412,15]
[325236241,1714607432362,-150.0,0.000255,4]
[325236242,1714607432371,-150.0,0.00025899,2]
[325236243,1714607432380,-157.33546515,0.00025922,2]
[325236244,1714607432389,-2117.82888079,0.00025922,2]
[325236245,1714607432398,-210.36911107,0.00025922,2]
[325236246,1714607432407,-1952.212,0.00025922,2]
[325236247,1714607432416,-205400.87905771,0.00025922,2]
[325236248,1714607432429,-300.0,0.00025922,2]
[325236249,1714607432440,-460.43123519,0.00025922,2]
[325236250,1714607432452,-21472.2344071,0.00025922,2]
[325236251,1714607432461,-864.92172771,0.00025923,2]
[325236252,1714607432470,-400.73856717,0.00025927,2]
[325236253,1714607432479,-150.0,0.00026,4]
[325236254,1714607432488,-181.53787437,0.00026012,2]
[325236255,1714607432498,-155.0,0.00026019,2]
[325236256,1714607432507,-469.47635736,0.0002602,2]
[325236257,1714607432516,-460.73554938,0.0002602,2]
[325236258,1714607432525,-968.0068632,0.0002602,2]
[325236259,1714607432534,-317.01746459,0.0002602,2]
[325236260,1714607432543,-500.0,0.00026021,2]
[325236261,1714607432552,-500.0,0.00026021,2]
[325236262,1714607432561,-325.8442159,0.00026021,2]
[325236263,1714607432571,-155.0,0.00026021,2]
[325236264,1714607432580,-34510.34603465,0.00026021,2]
[325236265,1714607432590,-34324.20994555,0.00026022,2]
[325236266,1714607432605,-462.3687692,0.00026022,2]
[325236267,1714607432617,-7140.50711314,0.00026022,2]
[325236268,1714607432628,-658.25,0.00026022,2]
[325236269,1714607432643,-4321.14263448,0.00026022,2]
[325236270,1714607432654,-385.01912969,0.00026022,2]
[325236271,1714607432670,-59020.97527109,0.00026022,2]
[325236272,1714607432704,-52366.10599794,0.00026022,2]
[325236273,1714607432715,-614.7279758,0.00026022,2]
[325236274,1714607432726,-428.101543,0.00026022,2]
[325236275,1714607432746,-6755.06434201,0.000219,2]
[325236276,1714607432755,-23136.40361883,0.00026022,2]
[325236277,1714607432766,-61206.5463406,0.00026022,2]
[325236282,1714607437960,-7090.58210294,0.00026022,2]
[325236283,1714607438017,-6446.8404,0.00026022,2]
[325236284,1714607438029,-5861.25563984,0.00026022,2]
[325236285,1714607438129,-676.74621743,0.00026022,2]
[325236286,1714607438141,-37175.93300773,0.00026022,2]
[325236287,1714607438150,-500.0,0.00026023,2]
[325236288,1714607438160,-161622.06930222,0.00026023,2]
[325236289,1714607438274,-25239.82464,0.00026023,2]
[325236290,1714607438286,-40188.70718728,0.00026023,2]
[325236291,1714607438307,-1760.11836,0.00026023,2]
[325236299,1714607440085,-2640.10736042,0.00026023,2]
[325236300,1714607440097,-1538.7074705,0.00026023,2]
[325236301,1714607440127,-736.5615792,0.00026023,2]
[325236302,1714607440140,-7691.69763579,0.00026023,2]
[325236303,1714607440151,-15228.66257192,0.00026023,2]
[325236304,1714607440174,-443.43736833,0.00026023,2]
[325236305,1714607440199,-717.01371046,0.00026023,2]
[325236306,1714607440211,-828.277148,0.00026023,2]
[325236307,1714607440223,-1756.46731104,0.00026023,2]
[325236321,1714607442640,-2000.0,0.000252,2]
[325236322,1714607442651,-929.45,0.00026023,2]
[325236323,1714607442693,-550.955965,0.00026023,2]
[325236325,1714607443164,-1889.08592415,0.00026023,2]
[325236326,1714607443197,-875.27431459,0.00026023,2]
[325236327,1714607443209,-765.0266161,0.00026023,2]
[325236328,1714607443400,-169221.99118464,0.00026023,2]
[325236329,1714607443410,-800.0,0.00026027,2]
[325236330,1714607443419,-864.92172765,0.00026348,2]
[325236331,1714607443428,-150.0,0.000265,5]
[325236332,1714607443438,-400.73856717,0.0002667,2]
[325236333,1714607443447,-864.92172765,0.00026774,2]
[325236334,1714607443457,-150.0,0.00026899,2]
[325236335,1714607443466,-155.0,0.00027,4]
[325236336,1714607443476,-1739.47132911,0.00027,2]
[325236337,1714607443485,-150.0,0.00027,5]
[325236338,1714607443494,-400.0,0.00027028,120]
[325236339,1714607443504,-636.12,0.00027185,2]
[325236340,1714607443513,-864.92172765,0.00027199,2]
[325236341,1714607443523,-1000.0,0.00027273,2]
[325236342,1714607443532,-2117.82888072,0.00027343,2]
[325236343,1714607443542,-157.33546509,0.00027386,2]
[325236344,1714607443551,-160.702584,0.00027395,2]
[325236345,1714607443563,-781.81418738,0.00027396,2]
[325236346,1714607443573,-256.17387339,0.00027397,7]
[325236347,1714607443582,-271.64812473,0.00027397,2]
[325236348,1714607443592,-866.68214589,0.00027397,2]
[325236349,1714607443602,-300.0,0.00027397,2]
[325236350,1714607443613,-1000.0,0.00027397,2]